Cogmind - Beta 14 @@@ ROGUE MODE // 2024.09.06 @ 02:33:03 Player: J1ang-5h1 Result: Destroyed by BQ-9HS(R) with Subdweller Beam Cannon Performance ------------- Evolutions (0) 0 Regions Visited (2) 400 Robots Destroyed (33) 165 Value Destroyed (793) 793 Prototype IDs (2) 40 Alien Tech Used (0) 0 Bonus (0) 0 TOTAL SCORE: 1398 Bonus ------- None Cogmind --------- Core Integrity 0/250 Matter 159/300 Energy 180/200 System Corruption 0% Temperature Cool (9) Movement Rolling (131) Ox3 Location -10/Subcaves Parts ------- > --- POWER (1) -------- Subdweller Power Source > --- PROPULSION (2) --- Wheel Subdweller Monowheel > --- UTILITY (2) ------ Disposable Heat Sink Huge Storage Unit > --- WEAPON (2) ------- Assault Rifle Grenade Launcher > --- INVENTORY (25) --- Subdweller Power Source Spiked Treads Subdweller Monowheel Medium Storage Unit Visual Processing Unit Subdweller Optics Improved Terrain Scanner Seismic Detector Scrap Shield Subdweller Shrapnel Launcher Subdweller Shrapnel Launcher Mining Laser Peak State ------------ > --- POWER ------------ Makeshift Power Source > --- PROPULSION ------- Light Treads Light Treads > --- UTILITY ---------- Improved Heat Sink Medium Storage Unit > --- WEAPON ----------- Medium Laser Medium Laser > --- INVENTORY -------- Compact Wheel Huge Storage Unit Visual Processing Unit Signal Interpreter Improved Terrain Scanner Seismic Detector Assault Rifle Grenade Launcher Grenade Launcher Mining Laser [Rating: 13] Favorites ----------- Power Ion Engine Engine Ion Engine Propulsion Light Treads Treads Light Treads Leg Aluminum Leg Wheel Subdweller Monowheel Utility Medium Storage Unit Device Improved Heat Sink Storage Medium Storage Unit Weapon Medium Laser Energy Gun Medium Laser Ballistic Gun Assault Rifle Launcher Grenade Launcher Special Weapon Mining Laser Build | -11 -10 -10 ------- Run | Yrd Mat Sub Slots Evolved . | . . . Power . | . . . Propulsion . | . . . Utility . | . . . Weapon . | . . . Parts Attached 43 | 1 12 30 Power 3 | . 1 2 Engine 3 | . 1 2 Core . | . . . Reactor . | . . . Propulsion 8 | . 2 6 Treads 3 | . 2 1 Leg . | . . . Wheel 5 | . . 5 Hover . | . . . Flight . | . . . Utility 5 | 1 2 2 Device 3 | 1 1 1 Storage 2 | . 1 1 Processor . | . . . Hackware . | . . . Protection . | . . . Artifact . | . . . Weapon 27 | . 7 20 Energy Gun 5 | . 2 3 Energy Cannon . | . . . Ballistic Gun 10 | . 2 8 Ballistic Cannon . | . . . Launcher 6 | . 2 4 Special Weapon 6 | . 1 5 Impact Weapon . | . . . Slashing Weapon . | . . . Piercing Weapon . | . . . Special Melee Weapon . | . . . Unidentified Prototypes . | . . . Parts Lost 8 | . . 8 Power 1 | . . 1 Propulsion 3 | . . 3 Utility 1 | . . 1 Weapon 3 | . . 3 Highest Loss Streak 4 | . . 4 To Critical Strikes 1 | . . 1 Average Slot Usage (%) 97 | . 99 95 Engine 13 | . 14 13 Treads 18 | . 26 11 Wheel 6 | . . 13 Device 13 | . 14 13 Storage 14 | . 14 14 Energy Gun 13 | . 16 10 Ballistic Gun 10 | . 10 11 Launcher 1 | . . 3 Special Weapon 1 | . . 2 Peak Build Rating 13 | 7 10 13 Average Rating 10 | 6 9 11 On Entrance 7 | 6 7 10 Naked Turns . | . . . Heaviest Build 91 | 12 20 91 Greatest Support 40 | 20 40 40 Greatest Overweight (x) 6 | . . 6 Average Overweight (x) . | . . . Largest Inventory Capacity 25 | 8 10 25 Average Capacity 9 | 8 8 11 Most Carried 14 | 8 10 14 Average Carried 9 | 6 8 9 Final Capacity 25 | 8 10 25 Final Carried 13 | 7 10 13 Class Distribution -------------------- 90% | Mutant 9% | Scavenger-Mutant Dominant Class ---------------- Mutant | -10/Materials Mutant | -10/Subcaves Resources | -11 -10 -10 ----------- Run | Yrd Mat Sub Matter Collected 951 | 214 311 426 Remotely . | . . . Salvage Created 953 | 172 428 353 Parts 60 | 9 33 18 Haulers Intercepted . | . . . Recyclers Shooed 1 | 1 . . Parts Field Recycled . | . . . Retrieved Matter . | . . . Parts Self-Destructed 9 | . . 9 Prevented . | . . . Kills | -11 -10 -10 ------- Run | Yrd Mat Sub Combat Hostiles Destroyed 22 | . 10 12 Guns 12 | . 5 7 AOE 10 | . 5 5 Classes Destroyed 7 | 2 4 1 Worker 4 | . 4 . Tunneler 3 | 3 . . Recycler 1 | 1 . . Watcher 3 | . 3 . Swarmer 6 | . 3 3 Grunt 7 | . 7 . Subdweller 9 | . . 9 Best Kill Streak 6 | 2 6 3 Combat Bots Only 5 | . 5 3 Max Kills in Single Turn 3 | 1 3 3 Gunslinging . | . . . Exploded 3 | . 3 3 Melee . | . . . Uniques/NPCs Destroyed . | . . . Combat | -11 -10 -10 -------- Run | Yrd Mat Sub Hostile Shots Fired 96 | . 34 62 Missed 24 | . 10 14 Damage Taken 1359 | . 271 1088 Core 267 | . 43 224 Absorbed by Shields . | . . . Regen/Repaired (Parts) 43 | . 43 . Core Remaining (%) 100 | 100 . . Volleys Fired 135 | 14 50 71 Largest 2 | 2 2 2 Hottest 120 | 70 100 120 Shots Fired 226 | 28 93 105 Gun 181 | 28 86 67 Cannon . | . . . Launcher 31 | . 7 24 Special 14 | . . 14 Kinetic 72 | 14 37 21 Thermal 123 | 14 49 60 Explosive 31 | . 7 24 Electromagnetic . | . . . Robot Hit Streak 19 | 4 10 19 Robot Miss Streak 5 | 3 5 2 Penetration Max . | . . . Secondary Targets . | . . . Shots Hit Robots 128 | 15 49 64 Core Hits 50 | 5 24 21 Critical Kills . | . . . Critical Parts Destroyed . | . . . Critical Strikes 9 | 1 2 6 Burn 7 | 1 2 4 Destroy 2 | . . 2 Melee Attacks . | . . . Impact . | . . . Slashing . | . . . Piercing . | . . . Sneak Attacks . | . . . Combat Hostiles . | . . . Follow-up Attacks . | . . . Damage Inflicted 2544 | 180 971 1393 Guns 1632 | 180 617 835 Cannons . | . . . Explosions 912 | . 354 558 Melee . | . . . Ramming . | . . . Kinetic 625 | 55 222 348 Thermal 1007 | 125 395 487 Explosive 912 | . 354 558 Electromagnetic . | . . . Impact . | . . . Slashing . | . . . Piercing . | . . . Highest Corruption . | . . . Average Corruption . | . . . Corruption Purged . | . . . Corruption Blocked . | . . . Overload Shots . | . . . Overflow Damage 4 | . . 4 Projectiles . | . . . Explosions 4 | . . 4 Melee . | . . . Knockbacks . | . . . Impact . | . . . Kinetic . | . . . Secondary . | . . . Self-Inflicted Damage 73 | . . 73 Shots 3 | . . 3 Rammed . | . . . Targets Rammed . | . . . Kicked . | . . . Crushed . | . . . Highest Temperature 108 | 70 108 . Average Temperature 40 | 33 46 . Received Heat Transfer 291 | . 138 153 Siege Activations . | . . . Robots Corrupted . | . . . Combat Hostiles . | . . . Parts Fried . | . . . Impact Corruptions . | . . . Robots Melted . | . . . Combat Hostiles . | . . . Parts Melted 10 | . 2 8 Heat Transferred 3478 | 444 1295 1739 Parts Sabotaged . | . . . Parts Stolen . | . . . Parts Stripped . | . . . Power Chain Reactions . | . . . Alert | -11 -10 -10 ------- Run | Yrd Mat Sub Peak Influence 295 | 20 295 . Initial 13 | . 13 . Average 98 | 12 104 . Maximum Alert Level 1 | . 1 . Low Security (%) 84 | 100 83 . Level 1 15 | . 16 . Level 2 . | . . . Level 3 . | . . . Level 4 . | . . . Level 5 . | . . . High Security . | . . . Max Security . | . . . Squads Dispatched 3 | . 3 . Investigation 2 | . 2 . Extermination . | . . . Reinforcement 1 | . 1 . Assault . | . . . Garrison . | . . . Intercept . | . . . Searches Triggered . | . . . Construction Impeded . | . . . Haulers Reinforced . | . . . Active Scanning Responses . | . . . Cargo Convoy Interrupts . | . . . Stealth | -11 -10 -10 --------- Run | Yrd Mat Sub Distress Signals 2 | . 2 . Communications Jammed . | . . . Distress Signals . | . . . Times Spotted 37 | . 22 15 Peak Tracking Total 6 | . 6 3 Tactical Retreats . | . . . Traps | -11 -10 -10 ------- Run | Yrd Mat Sub Traps Triggered 1 | . 1 . Indirectly . | . . . Trap Hack Attempts . | . . . Triggered . | . . . Disarmed . | . . . Reprogrammed . | . . . Reused . | . . . Traps Extracted . | . . . Installed . | . . . Triggered 1 | . . 1 Machines | -11 -10 -10 ---------- Run | Yrd Mat Sub Machines Disabled 3 | . 3 . Max in Single Turn 1 | . 1 . Machines Repaired . | . . . Machines Dismantled . | . . . Machines Sabotaged . | . . . Overloaded Fab Kills . | . . . Hacking | -11 -10 -10 --------- Run | Yrd Mat Sub Machines Accessed 7 | . 7 . Terminals 5 | . 5 . Fabricators . | . . . Repair Stations 1 | . 1 . Recycling Units 1 | . 1 . Scanalyzers . | . . . Garrison Access . | . . . Total Hacks 20 | . 20 . Successful 14 | . 14 . Failed 6 | . 6 . Catastrophic . | . . . Database Lockouts . | . . . Manual 14 | . 14 . Terminals 16 | . 16 . Fabricators . | . . . Repair Stations 2 | . 2 . Recycling Units 2 | . 2 . Scanalyzers . | . . . Garrison Access . | . . . Terminal Hacks 4 | . 4 . Robot Analysis 2 | . 2 . Prototype ID Bank 1 | . 1 . Locate Traps 1 | . 1 . Fabricator Hacks . | . . . Repair Station Hacks 2 | . 2 . Scan Component 1 | . 1 . Repair 1 | . 1 . Recycling Unit Hacks 1 | . 1 . Report Inventory 1 | . 1 . Scanalyzer . | . . . Garrison Access Hacks . | . . . Unauthorized Hacks 7 | . 7 . Terminals 6 | . 6 . Botnet 2 | . 2 . Skim 4 | . 4 . Fabricators . | . . . Repair Stations . | . . . Recycling Units 1 | . 1 . Tunnel 1 | . 1 . Scanalyzers . | . . . Garrison Access . | . . . Data Cores Recovered . | . . . Used . | . . . Hacking Detections 6 | . 6 . Full Trace Events . | . . . Feedback Events . | . . . Feedback Blocked . | . . . Robot Schematics Acquired . | . . . Robots Built . | . . . Authchips . | . . . Time . | . . . Total Robot Build Rating . | . . . Part Schematics Acquired . | . . . Parts Built . | . . . Authchips . | . . . Time . | . . . Total Part Build Rating . | . . . Parts Repaired 1 | . 1 . Time 26 | . 26 . Parts Recycled . | . . . Recycled Matter . | . . . Retrieved Matter . | . . . Retrieved Components . | . . . Parts Scanalyzed . | . . . Part Schematics Acquired . | . . . Parts Damaged . | . . . Bothacking | -11 -10 -10 ------------ Run | Yrd Mat Sub Used RIF Installer . | . . . Robots Hacked . | . . . Non-combat . | . . . Combat . | . . . Robot Hacks Applied . | . . . Relay Couplers Released . | . . . Fabnet Peak Effective % . | . . . Robots Rewired . | . . . Allies Hacked . | . . . Hacks Repelled . | . . . Allies | -11 -10 -10 -------- Run | Yrd Mat Sub Total Allies . | . . . Largest Group . | . . . Highest-Rated Group . | . . . Highest-Rated Ally . | . . . Total Orders . | . . . Ally Attacks . | . . . Total Damage . | . . . Kills . | . . . Allies Corrupted . | . . . Allies Melted . | . . . Intel | -11 -10 -10 ------- Run | Yrd Mat Sub Robot Analysis Total 2 | . 2 . Derelict Logs Recovered . | . . . Drone Launches . | . . . Drone Recoveries . | . . . Exploration | -11 -10 -10 ------------- Run | Yrd Mat Sub Turns Passed 3692 | 115 1785 1792 Spaces Moved 2055 | 57 932 1066 Core 33 | . . 33 Treads 1266 | . 869 397 Legs 120 | 57 63 . Wheels 636 | . . 636 Hover . | . . . Flight . | . . . Fastest Speed 100 | 120 120 100 Average Speed 147 | 120 157 141 Slowest Speed 350 | 120 160 350 Overloaded Moves . | . . . Propulsion Burnouts . | . . . Robots Hopped . | . . . Cave-ins Triggered . | . . . Exploration Rate (%) 51 | 5 94 55 Regions Visited 2 Branch Regions 1 Pre-discovered Areas 1 | . 1 . Known Exits Taken . | . . . Unknown Exits Taken 2 | 1 1 . Scrap Searched 9 | . . 9 Spaces Dug 5 | . 5 . Terrain Destroyed 160 | . 41 119 Melee . | . . . Projectile . | . . . AOE 160 | . 41 119 Terrain Rammed . | . . . Walls Destroyed . | . . . Machines Disabled . | . . . Actions | -11 -10 -10 --------- Run | Yrd Mat Sub Total 2450 | 78 1156 1216 Wait 182 | 5 147 30 Move 2053 | 56 931 1066 Hop . | . . . Pick Up 23 | 2 10 11 Fast Attach 5 | . . 5 Attach 9 | 1 1 7 Detach . | . . . Swap 29 | . 11 18 Drop 14 | . 6 8 Fire 135 | 14 50 71 Melee . | . . . Ram . | . . . Kick . | . . . Crush . | . . . Escape Stasis . | . . . Rewire . | . . . Trap . | . . . Miscellaneous . | . . . Route ------- -11/Scrapyard -10/Materials (discovered 5 exits: [*Mat x3] / [*Min] / [*Sub]) -10/Subcaves (discovered 1 exit: [*Mat]) History --------- Turn | Location | Event 13 | -11/Scrapyard | Discovered new exit (range 3) 116 | -11/Scrapyard | Entered Materials 318 | -10/Materials | Build established: Mutant 376 | -10/Materials | Discovered new exit (range 7) 514 | -10/Materials | Discovered new exit (range 12) 583 | -10/Materials | Repaired Med. Laser 715 | -10/Materials | Discovered new exit (range 7) 759 | -10/Materials | Discovered new exit (range 8) 1890 | -10/Materials | Discovered new exit (range 5) 1901 | -10/Materials | Entered Subcaves 2362 | -10/Subcaves | Disturbed a concealed Subdweller 2439 | -10/Subcaves | Disturbed a concealed Subdweller 2684 | -10/Subcaves | Lost 4 parts (1p2n1u) 2785 | -10/Subcaves | Discovered new exit (range 16) 3198 | -10/Subcaves | Core integrity fell below 50% 3238 | -10/Subcaves | Lost 3 parts (1n2w) 3691 | -10/Subcaves | Core integrity fell below 20% 3693 | -10/Subcaves | Destroyed by BQ-9HS(R) with Subdweller Beam Cannon Last Messages --------------- repair. 03508_ Flight Unit fries itself beyond repair. 03509_ Acquired 10 matter. 03510_ Acquired 3 matter. 03515_ Acquired 8 matter. 03518_ Flight Unit fries itself beyond repair. 03526_ Acquired Spk. Treads. 03527_ Acquired 44 matter. 03532_ Dropped Sub. Monowheel. 03533_ Acquired Wheel. 03535_ Acquired 7 matter. 03538_ Dropped Wheel. 03539_ Dropped Spk. Treads. 03540_ Acquired Wheel. 03544_ Acquired Spk. Treads. 03566_ Acquired Sub. Power Source. 03590_ Acquired Sub. Monowheel. 03602_ Acquired Sub. Shrapnel Launcher. 03623_ Acquired 11 matter. 03691_ Grenade Launcher destroyed. Map ----- +----------------------------------------------------+ | ?# #### ## ## #????????????? | | ?## ##???## ### #???????????? | | ##### #?### ##?# #???????????? | | ### #?# #??## ##???????????? | | # #?# ## ### ## ##??###????????????? | | ### #?### ## ##????????????????? | | ### #???### ## #????????????????? | | ##???# # #????????????????? | | & ! ##### #????????????????? | | " & ### ##???????????????? | | # # # #???????????????? | | ### ## # ## #???#???????????? | | ######## ## #### ##? #???????????? | | #?????#### ### ###??# ## ##??????????? | | ##????????###?# #????# ## #??????????? | | #?????????????# #???##### #??????????? | | ##?????????????## #?????# ##??????????? | | ????????????????###### #????# #???????????? | | ?????????????????????? #??## ####???????????? | | ?????????????????????? ## #?## #??????????????? | | ?????????????????????? #?#### #??????????????? | | ???????????????????????#?### #??????????????? | | ????????????????????????## ##??????????????? | | ????????????????????????# ##???????????????? | | ????????????????????????# ##????????????????? | | ????????????????????????#@ #####?????????????????? | | ???????????????????????## #?????????????????????? | | ???????????????????????# ????????????????????? | | ???????????????????????# #???????????????????? | | ??????????????????????? ##???????????????????? | | ??????????????????????? R #????????????????????? | | ?????????????????????? ????????????????????? | | ?????????????????????? ????????????????????? | | ????????????????????? #???????????????????? | | ????????????????????? R ##???????????????????? | | ???????????????????? ##????????????????????? | | ????????????????????# ##?????????????????????? | | ????????????????????# #???????????????????????? | | ????????????????????# ##????????????????????????? | | ????????????????????# ??????????????????????????? | | ???????????????????? #??????????????????????????? | | ???????????????????? ???????????????????????????? | | ?????????????????????????????????????????????????? | | ?????????????????????????????????????????????????? | | ?????????????????????????????????????????????????? | | ?????????????????????????????????????????????????? | | ?????????????????????????????????????????????????? | | ?????????????????????????????????????????????????? | | ?????????????????????????????????????????????????? | | ?????????????????????????????????????????????????? | +----------------------------------------------------+ Best States ------------- Heat Dissipation 39 Coolant Potential 50 Energy Generation 15 Energy Capacity 250 Matter Stores 300 Matter Capacity 300 Sight Range 16 Terrain Scan Density 10 Evasion (%) 55 Recoil Reduction 2 Item Schematics ----------------- None Robot Schematics ------------------ None Fabricated ------------ Nothing Alien Tech Used ----------------- None Achievements -------------- None Challenges ------------ None Game ------ Seed SingularityMobileLegs Manual? 0 Play Time 00:25:22 Cumulative 256.2 hours Start 2024.09.06 @ 02:08:44 End 2024.09.06 @ 02:33:03 Sessions 1 Manual Loads 0 Difficulty Rogue Special Mode None Game No. 194 Rogue 184 Adventurer 0 Explorer 10 Win Type - Total 3 Types 3/0/0/0/0/0/0/0/0 Lore% 62 Gallery% 69 Achievement% 53 Wizard Run 0 Options --------- Layout 2 ASCII 0 Keyboard 0 Movement Arrows Keybinds 1 Fullscreen 1 Font 24/Smallcaps Map View 50x44 Zoom Use 0% Tactical HUD 1 Map Filters NONE Filters NONE Steam 1 RUN: ad6a3d43-9b0a-4bd7-99f6-3e178c405f41